fUST/lending_fUST_20250222
["ID","MTS","AMOUNT","RATE_DAILY","PERIOD"]
[353940870,1740160255260,-500.0,0.0001378,2]
[353940871,1740160255269,-500.0,0.0001378,2]
[353940872,1740160255278,-500.0,0.0001378,2]
[353940873,1740160255288,-500.0,0.0001378,2]
[353940874,1740160255297,-342.4822616,0.0001378,2]
[353940875,1740160255306,-500.0,0.0001378,2]
[353940876,1740160255315,-500.0,0.0001378,2]
[353940877,1740160255325,-500.4995639,0.0001378,2]
[353940878,1740160255336,-178.05984027,0.0001378,2]
[353940879,1740160255349,-500.0,0.0001378,2]
[353940880,1740160255358,-510.61376861,0.0001378,2]
[353940881,1740160255367,-500.0,0.0001378,2]
[353940882,1740160255377,-503.85385095,0.0001378,2]
[353940883,1740160255387,-500.0,0.0001378,2]
[353940884,1740160255397,-500.0,0.0001378,2]
[353940885,1740160255406,-500.0,0.0001378,2]
[353940886,1740160255416,-500.0,0.0001378,2]
[353940887,1740160255425,-500.0,0.0001378,2]
[353940888,1740160255434,-500.0,0.0001378,2]
[353940889,1740160255444,-2900.01,0.0001378,2]
[353940890,1740160255453,-513.1946254,0.0001378,2]
[353940891,1740160255463,-500.0,0.0001378,2]
[353940892,1740160255473,-500.0,0.0001378,2]
[353940893,1740160255482,-639.11,0.0001378,2]
[353940894,1740160255491,-500.0,0.0001378,2]
[353940895,1740160255500,-500.0,0.0001378,2]
[353940896,1740160255510,-500.0,0.0001378,2]
[353940897,1740160255519,-500.0,0.0001378,2]
[353940898,1740160255528,-500.0,0.0001378,2]
[353940899,1740160255537,-500.0,0.0001378,2]
[353940900,1740160255546,-1068.55,0.0001378,2]
[353940901,1740160255555,-500.0,0.0001378,2]
[353940902,1740160255564,-500.0,0.0001378,2]
[353940903,1740160255574,-522.1201491,0.0001378,2]
[353940904,1740160255583,-500.0,0.0001378,2]
[353940905,1740160255592,-500.0,0.0001378,2]
[353940906,1740160255602,-2035.31,0.0001378,2]
[353940907,1740160255611,-500.0,0.0001378,2]
[353940908,1740160255620,-1232.49,0.0001378,2]
[353940909,1740160255630,-500.0,0.0001378,2]
[353940910,1740160255638,-11401.33,0.0001378,2]
[353940911,1740160255647,-500.0,0.0001378,2]
[353940912,1740160255656,-500.0,0.0001378,2]
[353940913,1740160255665,-507.511043,0.0001378,2]
[353940914,1740160255674,-500.0,0.0001378,2]
[353940915,1740160255683,-500.0,0.0001378,2]
[353940916,1740160255692,-500.0,0.0001378,2]
[353940917,1740160255701,-500.0,0.0001378,2]
[353940918,1740160255710,-500.0,0.0001378,2]
[353940919,1740160255722,-500.0,0.0001378,2]
[353940920,1740160255731,-500.0,0.0001378,2]
[353940921,1740160255740,-500.0,0.0001378,2]
[353940922,1740160255751,-500.0,0.0001378,2]
[353940923,1740160255760,-513.37,0.0001378,2]
[353940924,1740160255770,-500.0,0.0001378,2]
[353940925,1740160255780,-500.0,0.0001378,2]
[353940926,1740160255790,-500.0,0.0001378,2]
[353940927,1740160255799,-500.0,0.0001378,2]
[353940928,1740160255809,-1489.46,0.0001378,2]
[353940929,1740160255818,-500.0,0.0001378,2]
[353940930,1740160255827,-500.0,0.0001378,2]
[353940931,1740160255836,-500.0,0.0001378,2]
[353940932,1740160255846,-500.0,0.0001378,2]
[353940933,1740160255855,-500.0,0.0001378,2]
[353940934,1740160255864,-500.0,0.0001378,2]
[353940935,1740160255873,-720.01,0.0001378,2]
[353940936,1740160255882,-500.0,0.0001378,2]
[353940937,1740160255892,-500.0,0.0001378,2]
[353940938,1740160255902,-504.17797113,0.0001378,2]
[353940939,1740160255910,-500.59245334,0.0001378,2]
[353940940,1740160255921,-500.0,0.0001378,2]
[353940941,1740160255931,-915.93951268,0.00013791,2]
[353940942,1740160255940,-7438.69753278,0.00013822,2]
[353940943,1740160255949,-503.39658544,0.00013863,2]
[353940944,1740160255959,-500.0,0.00013863,2]
[353940945,1740160255971,-694.76,0.00013863,2]
[353940946,1740160255980,-500.0,0.00013863,2]
[353940947,1740160255989,-506.46826415,0.00013863,2]
[353940948,1740160255999,-502.47581093,0.00013863,2]
[353940949,1740160256009,-511.6,0.00013863,2]
[353940950,1740160256018,-500.0,0.00013863,2]
[353940951,1740160256027,-378.68279585,0.00013863,2]
[353940952,1740160256037,-500.0,0.00013863,2]
[353940953,1740160256046,-500.0,0.00013863,2]
[353940954,1740160256055,-500.0,0.00013863,2]
[353940955,1740160256064,-500.0,0.00013863,2]
[353940956,1740160256073,-500.24904968,0.00013863,2]
[353940957,1740160256082,-500.0,0.00013863,2]
[353940958,1740160256092,-500.0,0.00013863,2]
[353940959,1740160256101,-500.0,0.00013863,2]
[353940960,1740160256111,-500.0,0.00013863,2]
[353940961,1740160256120,-500.0,0.00013863,2]
[353940962,1740160256129,-500.0,0.00013863,2]
[353940963,1740160256138,-231.01505626,0.00013863,2]
[353940964,1740160256148,-500.0,0.00013863,2]
[353940965,1740160256157,-500.0,0.00013863,2]
[353940966,1740160256166,-500.0,0.00013863,2]
[353940967,1740160256175,-507.02082103,0.00013863,2]
[353940968,1740160256185,-500.0,0.00013863,2]
[353940969,1740160256195,-500.0,0.00013863,2]
[353940970,1740160256204,-500.0,0.00013863,2]
[353940971,1740160256213,-500.0,0.00013863,2]
[353940972,1740160256224,-500.0,0.00013863,2]
[353940973,1740160256233,-502.09581191,0.00013863,2]
[353940974,1740160256243,-500.0,0.00013863,2]
[353940975,1740160256252,-603.11,0.00013863,2]
[353940976,1740160256261,-500.0,0.00013863,2]
[353940977,1740160256271,-500.0,0.00013863,2]
[353940978,1740160256280,-3315.75,0.00013863,2]
[353940979,1740160256290,-500.0,0.00013863,2]
[353940980,1740160256299,-500.0,0.00013863,2]
[353940981,1740160256309,-640.23867086,0.00013863,2]
[353940982,1740160256319,-269.41490776,0.00013863,2]
[353940983,1740160256329,-504.06012441,0.00013863,2]
[353940984,1740160256342,-500.0,0.00013863,2]
[353940985,1740160256352,-1000.0,0.00013863,2]
[353940986,1740160256361,-500.0,0.00013863,2]
[353940987,1740160256371,-500.0,0.00013863,2]
[353940988,1740160256380,-500.0,0.00013863,2]
[353940989,1740160256390,-500.0,0.00013863,2]
[353940990,1740160256400,-1430.84,0.00013863,2]
[353940991,1740160256410,-500.0,0.00013863,2]
[353940992,1740160256419,-500.0,0.00013863,2]
[353940993,1740160256429,-500.0,0.00013863,2]
[353940994,1740160256438,-500.0,0.00013863,2]
[353940995,1740160256447,-500.0,0.00013863,2]
[353940996,1740160256457,-500.0,0.00013863,2]
[353940997,1740160256467,-500.0,0.00013863,2]
[353940998,1740160256476,-500.0,0.00013863,2]
[353940999,1740160256485,-500.0,0.00013863,2]
[353941000,1740160256495,-4274.13,0.00013863,2]
[353941001,1740160256504,-500.0,0.00013863,2]
[353941002,1740160256513,-500.0,0.00013863,2]
[353941003,1740160256522,-500.0,0.00013863,2]
[353941004,1740160256597,-500.0,0.00013863,2]
[353941005,1740160256612,-503.77889916,0.00013863,2]
[353941006,1740160256622,-500.0,0.00013863,2]
[353941007,1740160256631,-500.0,0.00013863,2]
[353941008,1740160256640,-500.0,0.00013863,2]
[353941009,1740160256649,-500.0,0.00013863,2]
[353941010,1740160256658,-500.0,0.00013863,2]
[353941011,1740160256667,-753.96,0.00013863,2]
[353941012,1740160256677,-500.0,0.00013863,2]
[353941013,1740160256686,-500.0,0.00013863,2]
[353941014,1740160256695,-558.17,0.00013863,2]
[353941015,1740160256705,-500.0,0.00013863,2]
[353941016,1740160256716,-1969.34,0.00013863,2]
[353941017,1740160256725,-500.0,0.00013863,2]
[353941018,1740160256735,-500.0,0.00013863,2]
[353941019,1740160256744,-599.42,0.00013863,2]
[353941020,1740160256754,-500.0,0.00013863,2]
[353941021,1740160256764,-502.90659524,0.00013863,2]
[353941022,1740160256774,-500.0,0.00013863,2]
[353941023,1740160256783,-500.0,0.00013863,2]
[353941024,1740160256793,-638.21021051,0.00013863,2]
[353941025,1740160256803,-500.0,0.00013863,2]
[353941026,1740160256812,-500.0,0.00013863,2]
[353941027,1740160256822,-502.63944035,0.00013863,2]
[353941028,1740160256831,-500.0,0.00013863,2]
[353941029,1740160256840,-574.17,0.00013863,2]
[353941030,1740160256850,-501.58885552,0.00013863,2]
[353941031,1740160256859,-508.82555335,0.00013863,2]
[353941032,1740160256868,-500.0,0.00013863,2]
[353941033,1740160256878,-529.41488369,0.00013863,2]
[353941034,1740160256887,-460.16596127,0.00013863,2]
[353941035,1740160256896,-500.0,0.00013863,2]
[353941036,1740160256905,-507.6817314,0.00013863,2]
[353941037,1740160256915,-510.05816572,0.00013863,2]
[353941038,1740160256924,-500.0,0.00013863,2]
[353941039,1740160256933,-500.0,0.00013863,2]
[353941040,1740160256943,-500.0,0.00013863,2]
[353941041,1740160256952,-500.0,0.00013863,2]
[353941042,1740160256961,-500.0,0.00013863,2]
[353941043,1740160256972,-541.51,0.00013863,2]
[353941044,1740160256982,-500.0,0.00013863,2]
[353941045,1740160256991,-505.22297044,0.00013863,2]
[353941046,1740160257001,-500.0,0.00013863,2]
[353941047,1740160257010,-500.0,0.00013863,2]
[353941048,1740160257019,-500.0,0.00013863,2]
[353941049,1740160257029,-500.0,0.00013863,2]
[353941050,1740160257038,-500.0,0.00013863,2]
[353941051,1740160257047,-500.0,0.00013863,2]
[353941052,1740160257057,-500.0,0.00013863,2]
[353941053,1740160257067,-6005.93,0.00013863,2]
[353941054,1740160257076,-500.0,0.00013863,2]
[353941055,1740160257085,-507.28961544,0.00013863,2]
[353941056,1740160257095,-500.0,0.00013863,2]
[353941057,1740160257104,-500.0,0.00013863,2]
[353941058,1740160257114,-500.0,0.00013863,2]
[353941059,1740160257123,-900.0,0.00013863,2]
[353941060,1740160257133,-655.58,0.00013863,2]
[353941061,1740160257142,-549.67398327,0.00013863,2]
[353941062,1740160257151,-504.46596772,0.00013863,2]
[353941063,1740160257160,-500.0,0.00013863,2]
[353941064,1740160257170,-755.02,0.00013863,2]
[353941065,1740160257182,-500.0,0.00013863,2]
[353941066,1740160257191,-503.15477331,0.00013863,2]
[353941067,1740160257200,-404.55036093,0.00013863,2]
[353941068,1740160257210,-500.0,0.00013863,2]
[353941069,1740160257220,-1267.08,0.00013863,2]
[353941070,1740160257229,-500.0,0.00013863,2]
[353941071,1740160257238,-500.0,0.00013863,2]
[353941072,1740160257248,-503.23080828,0.00013863,2]
[353941073,1740160257257,-500.0,0.00013863,2]
[353941074,1740160257266,-500.0,0.00013863,2]
[353941075,1740160257275,-500.0,0.00013863,2]
[353941076,1740160257287,-500.0,0.00013863,2]
[353941077,1740160257296,-500.0,0.00013863,2]
[353941078,1740160257306,-2900.01,0.00013863,2]
[353941079,1740160257315,-500.0,0.00013863,2]
[353941080,1740160257324,-500.0,0.00013863,2]
[353941081,1740160257335,-639.11,0.00013863,2]
[353941082,1740160257349,-503.99254148,0.00013863,2]
[353941083,1740160257358,-500.0,0.00013863,2]
[353941084,1740160257368,-500.0,0.00013863,2]
[353941085,1740160257378,-500.0,0.00013863,2]
[353941086,1740160257387,-1068.55,0.00013863,2]
[353941087,1740160257397,-500.0,0.00013863,2]
[353941088,1740160257407,-500.0,0.00013863,2]
[353941089,1740160257417,-2035.31,0.00013863,2]
[353941090,1740160257426,-1232.49,0.00013863,2]
[353941091,1740160257436,-500.0,0.00013863,2]
[353941092,1740160257447,-11401.33,0.00013863,2]
[353941093,1740160257456,-500.0,0.00013863,2]
[353941094,1740160257467,-500.0,0.00013863,2]
[353941095,1740160257476,-503.74022399,0.00013863,2]
[353941096,1740160257485,-500.0,0.00013863,2]
[353941097,1740160257494,-503.20230427,0.00013863,2]
[353941098,1740160257504,-506.60081909,0.00013863,2]
[353941099,1740160257514,-500.0,0.00013863,2]
[353941100,1740160257523,-500.0,0.00013863,2]
[353941101,1740160257532,-500.0,0.00013863,2]
[353941102,1740160257541,-513.37,0.00013863,2]
[353941103,1740160257551,-500.0,0.00013863,2]
[353941104,1740160257560,-500.0,0.00013863,2]
[353941105,1740160257570,-500.63813277,0.00013863,2]
[353941106,1740160257579,-1489.46,0.00013863,2]
[353941107,1740160257588,-503.2948386,0.00013863,2]
[353941108,1740160257597,-502.77160388,0.00013863,2]
[353941109,1740160257608,-500.0,0.00013863,2]
[353941110,1740160257618,-500.0,0.00013863,2]
[353941111,1740160257627,-199.138979,0.00013863,2]
[353941112,1740160257636,-500.0,0.00013863,2]
[353941113,1740160257645,-720.01,0.00013863,2]
[353941114,1740160257655,-500.0,0.00013863,2]
[353941115,1740160257664,-500.0,0.00013863,2]
[353941116,1740160257674,-151.0,0.000139,2]
[353941117,1740160257683,-151.0,0.000139,2]
[353941118,1740160257692,-151.0,0.000139,2]
[353941119,1740160257702,-151.0,0.000139,2]
[353941120,1740160257711,-172.20415237,0.00013939,2]
[353941121,1740160257722,-160.0,0.00013944,2]
[353941122,1740160257731,-500.0,0.00013945,2]
[353941123,1740160257740,-694.76,0.00013945,2]
[353941124,1740160257749,-500.0,0.00013945,2]
[353941125,1740160257758,-328.458,0.00013945,2]
[353941126,1740160257767,-511.6,0.00013945,2]
[353941127,1740160257776,-332.35525799,0.00013945,2]
[353941128,1740160257785,-500.0,0.00013945,2]
[353941129,1740160257795,-500.0,0.00013945,2]
[353941130,1740160257804,-500.0,0.00013945,2]
[353941131,1740160257813,-500.0,0.00013945,2]
[353941132,1740160257822,-500.0,0.00013945,2]
[353941133,1740160257832,-500.0,0.00013945,2]
[353941134,1740160257841,-500.0,0.00013945,2]
[353941135,1740160257850,-500.0,0.00013945,2]
[353941136,1740160257859,-500.0,0.00013945,2]
[353941137,1740160257868,-500.0,0.00013945,2]
[353941138,1740160257878,-500.0,0.00013945,2]
[353941139,1740160257887,-500.0,0.00013945,2]
[353941140,1740160257896,-500.0,0.00013945,2]
[353941141,1740160257905,-500.0,0.00013945,2]
[353941142,1740160257914,-500.0,0.00013945,2]
[353941143,1740160257923,-500.0,0.00013945,2]
[353941144,1740160257932,-500.0,0.00013945,2]
[353941145,1740160257942,-500.0,0.00013945,2]
[353941146,1740160257951,-500.0,0.00013945,2]
[353941147,1740160258032,-603.11,0.00013945,2]
[353941148,1740160258041,-500.0,0.00013945,2]
[353941149,1740160258051,-3315.75,0.00013945,2]
[353941150,1740160258060,-500.0,0.00013945,2]
[353941151,1740160258068,-500.0,0.00013945,2]
[353941152,1740160258078,-500.0,0.00013945,2]
[353941153,1740160258087,-365.19142662,0.00013945,2]
[353941154,1740160258096,-500.0,0.00013945,2]
[353941155,1740160258105,-500.0,0.00013945,2]
[353941156,1740160258115,-500.0,0.00013945,2]
[353941157,1740160258124,-500.0,0.00013945,2]
[353941158,1740160258133,-1430.84,0.00013945,2]
[353941159,1740160258142,-500.0,0.00013945,2]
[353941160,1740160258151,-500.0,0.00013945,2]
[353941161,1740160258161,-500.0,0.00013945,2]
[353941162,1740160258171,-500.0,0.00013945,2]
[353941163,1740160258180,-384.18179924,0.00013945,2]
[353941164,1740160258190,-557.11,0.00013945,2]
[353941165,1740160258199,-500.0,0.00013945,2]
[353941166,1740160258209,-500.0,0.00013945,2]
[353941167,1740160258219,-500.0,0.00013945,2]
[353941168,1740160258229,-4274.13,0.00013945,2]
[353941169,1740160258238,-500.0,0.00013945,2]
[353941170,1740160258247,-500.0,0.00013945,2]
[353941171,1740160258256,-500.0,0.00013945,2]
[353941172,1740160258266,-500.0,0.00013945,2]
[353941173,1740160258276,-500.0,0.00013945,2]
[353941174,1740160258285,-500.0,0.00013945,2]
[353941175,1740160258295,-500.0,0.00013945,2]
[353941176,1740160258305,-500.0,0.00013945,2]
[353941177,1740160258315,-753.96,0.00013945,2]
[353941178,1740160258325,-500.0,0.00013945,2]
[353941179,1740160258336,-500.0,0.00013945,2]
[353941180,1740160258349,-558.17,0.00013945,2]
[353941181,1740160258359,-500.0,0.00013945,2]
[353941182,1740160258369,-1969.34,0.00013945,2]
[353941183,1740160258379,-506.31353594,0.00013945,2]
[353941184,1740160258388,-500.0,0.00013945,2]
[353941185,1740160258397,-500.0,0.00013945,2]
[353941186,1740160258407,-500.0,0.00013945,2]
[353941187,1740160258416,-508.08678673,0.00013945,2]
[353941188,1740160258426,-500.0,0.00013945,2]
[353941189,1740160258435,-500.0,0.00013945,2]
[353941190,1740160258444,-377.1476117,0.00013945,2]
[353941191,1740160258453,-574.17,0.00013945,2]
[353941192,1740160258463,-500.0,0.00013945,2]
[353941193,1740160258475,-500.0,0.00013945,2]
[353941194,1740160258485,-500.0,0.00013945,2]
[353941195,1740160258495,-490.0,0.00013945,2]
[353941196,1740160258505,-500.0,0.00013945,2]
[353941197,1740160258515,-500.0,0.00013945,2]
[353941198,1740160258524,-625.31935806,0.00013945,2]
[353941199,1740160258533,-329.01626507,0.00013945,2]
[353941200,1740160258542,-500.0,0.00013945,2]
[353941201,1740160258551,-500.0,0.00013945,2]
[353941202,1740160258560,-500.0,0.00013945,2]
[353941203,1740160258569,-500.0,0.00013945,2]
[353941204,1740160258577,-500.0,0.00013945,2]
[353941205,1740160258587,-500.0,0.00013945,2]
[353941206,1740160258597,-500.0,0.00013945,2]
[353941207,1740160258606,-6005.93,0.00013945,2]
[353941208,1740160258615,-503.33856379,0.00013945,2]
[353941209,1740160258625,-591.9755051,0.00013945,2]
[353941210,1740160258635,-469.32389448,0.00013945,2]
[353941211,1740160258645,-501.51922611,0.00013945,2]
[353941212,1740160258654,-655.58,0.00013945,2]
[353941213,1740160258664,-500.0,0.00013945,2]
[353941214,1740160258673,-755.02,0.00013945,2]
[353941215,1740160258683,-500.0,0.00013945,2]
[353941216,1740160258692,-500.0,0.00013945,2]
[353941217,1740160258701,-1267.08,0.00013945,2]
[353941218,1740160258710,-500.0,0.00013945,2]
[353941219,1740160258720,-500.0,0.00013945,2]
[353941220,1740160258730,-500.0,0.00013945,2]
[353941221,1740160258739,-500.0,0.00013945,2]
[353941222,1740160258748,-202.12592678,0.00013945,2]
[353941223,1740160258758,-503.95333104,0.00013945,2]
[353941224,1740160258768,-506.21986706,0.00013945,2]
[353941225,1740160258777,-2900.01,0.00013945,2]
[353941226,1740160258787,-500.0,0.00013945,2]
[353941227,1740160258796,-500.0,0.00013945,2]
[353941228,1740160258806,-639.11,0.00013945,2]
[353941229,1740160258815,-500.0,0.00013945,2]
[353941230,1740160258824,-500.0,0.00013945,2]
[353941231,1740160258834,-1068.55,0.00013945,2]
[353941232,1740160258844,-500.0,0.00013945,2]
[353941233,1740160258853,-2035.31,0.00013945,2]
[353941234,1740160258863,-500.0,0.00013945,2]
[353941235,1740160258872,-1232.49,0.00013945,2]
[353941236,1740160258881,-500.0,0.00013945,2]
[353941237,1740160258891,-11401.33,0.00013945,2]
[353941238,1740160258900,-500.0,0.00013945,2]
[353941239,1740160258910,-500.0,0.00013945,2]
[353941240,1740160258919,-500.0,0.00013945,2]
[353941241,1740160258929,-622.24634332,0.00013945,2]
[353941242,1740160258938,-209.7319382,0.00013945,2]
[353941243,1740160258947,-500.0,0.00013945,2]
[353941244,1740160258957,-513.37,0.00013945,2]
[353941245,1740160258966,-500.0,0.00013945,2]
[353941246,1740160258977,-500.0,0.00013945,2]
[353941247,1740160258986,-1489.46,0.00013945,2]
[353941248,1740160258996,-500.0,0.00013945,2]
[353941249,1740160259005,-500.0,0.00013945,2]
[353941250,1740160259014,-720.01,0.00013945,2]
[353941251,1740160259023,-500.0,0.00013945,2]
[353941252,1740160259033,-150.0,0.00013966,2]
[353941253,1740160259042,-538.0,0.00013966,2]
[353941254,1740160259052,-1969.0,0.00013966,2]
[353941255,1740160259061,-2288.0,0.00013966,2]
[353941256,1740160259071,-396.0,0.00013966,2]
[353941257,1740160259080,-161.414143,0.00014016,3]
[353941258,1740160259090,-160.0,0.00014026,2]
[353941259,1740160259100,-500.0,0.00014027,2]
[353941260,1740160259109,-694.76,0.00014027,2]
[353941261,1740160259119,-594.55175346,0.00014027,2]
[353941262,1740160259129,-511.6,0.00014027,2]
[353941263,1740160259138,-500.0,0.00014027,2]
[353941264,1740160259148,-337.8382426,0.00014027,2]
[353941265,1740160259158,-500.0,0.00014027,2]
[353941266,1740160259167,-500.0,0.00014027,2]
[353941267,1740160259177,-500.0,0.00014027,2]
[353941268,1740160259187,-500.0,0.00014027,2]
[353941269,1740160259196,-500.0,0.00014027,2]
[353941270,1740160259205,-500.0,0.00014027,2]
[353941271,1740160259215,-500.0,0.00014027,2]
[353941272,1740160259226,-500.0,0.00014027,2]
[353941273,1740160259235,-500.0,0.00014027,2]
[353941274,1740160259244,-500.0,0.00014027,2]
[353941275,1740160259253,-500.0,0.00014027,2]
[353941276,1740160259262,-500.0,0.00014027,2]
[353941277,1740160259272,-500.0,0.00014027,2]
[353941278,1740160259351,-500.0,0.00014027,2]
[353941279,1740160259361,-500.0,0.00014027,2]
[353941280,1740160259371,-500.0,0.00014027,2]
[353941281,1740160259381,-603.11,0.00014027,2]
[353941282,1740160259391,-500.0,0.00014027,2]
[353941283,1740160259400,-3315.75,0.00014027,2]
[353941284,1740160259409,-500.0,0.00014027,2]
[353941285,1740160259420,-500.0,0.00014027,2]
[353941286,1740160259429,-500.0,0.00014027,2]
[353941287,1740160259439,-580.2,0.00014027,2]
[353941288,1740160259448,-500.0,0.00014027,2]
[353941289,1740160259457,-500.0,0.00014027,2]
[353941290,1740160259466,-500.0,0.00014027,2]
[353941291,1740160259478,-1430.84,0.00014027,2]
[353941292,1740160259488,-500.0,0.00014027,2]
[353941293,1740160259497,-500.0,0.00014027,2]
[353941294,1740160259506,-500.0,0.00014027,2]
[353941295,1740160259515,-500.0,0.00014027,2]
[353941296,1740160259525,-500.0,0.00014027,2]
[353941297,1740160259534,-500.0,0.00014027,2]
[353941298,1740160259544,-500.0,0.00014027,2]
[353941299,1740160259553,-4274.13,0.00014027,2]
[353941300,1740160259562,-500.0,0.00014027,2]
[353941301,1740160259571,-500.0,0.00014027,2]
[353941302,1740160259581,-500.0,0.00014027,2]
[353941303,1740160259590,-500.0,0.00014027,2]
[353941304,1740160259599,-526.66,0.00014027,2]
[353941305,1740160259608,-500.0,0.00014027,2]
[353941306,1740160259618,-502.82270001,0.00014027,2]
[353941307,1740160259627,-500.0,0.00014027,2]
[353941308,1740160259637,-753.96,0.00014027,2]
[353941309,1740160259647,-500.0,0.00014027,2]
[353941310,1740160259656,-500.0,0.00014027,2]
[353941311,1740160259666,-558.17,0.00014027,2]
[353941312,1740160259675,-500.0,0.00014027,2]
[353941313,1740160259684,-1969.34,0.00014027,2]
[353941314,1740160259694,-500.0,0.00014027,2]
[353941315,1740160259704,-500.0,0.00014027,2]
[353941316,1740160259714,-500.0,0.00014027,2]
[353941317,1740160259724,-500.0,0.00014027,2]
[353941318,1740160259733,-500.0,0.00014027,2]
[353941319,1740160259742,-574.17,0.00014027,2]
[353941320,1740160259751,-500.0,0.00014027,2]
[353941321,1740160259760,-500.0,0.00014027,2]
[353941322,1740160259770,-500.0,0.00014027,2]
[353941323,1740160259780,-500.0,0.00014027,2]
[353941324,1740160259789,-500.0,0.00014027,2]
[353941325,1740160259799,-500.0,0.00014027,2]
[353941326,1740160259808,-500.0,0.00014027,2]
[353941327,1740160259818,-500.0,0.00014027,2]
[353941328,1740160259827,-500.0,0.00014027,2]
[353941329,1740160259836,-500.0,0.00014027,2]
[353941330,1740160259846,-500.0,0.00014027,2]
[353941331,1740160259855,-500.0,0.00014027,2]
[353941332,1740160259865,-6005.93,0.00014027,2]
[353941333,1740160259875,-655.58,0.00014027,2]
[353941334,1740160259885,-500.0,0.00014027,2]
[353941335,1740160259895,-755.02,0.00014027,2]
[353941336,1740160259904,-500.0,0.00014027,2]
[353941337,1740160259913,-500.0,0.00014027,2]
[353941338,1740160259923,-1267.08,0.00014027,2]
[353941339,1740160259932,-500.0,0.00014027,2]
[353941340,1740160259941,-500.0,0.00014027,2]
[353941341,1740160259950,-500.0,0.00014027,2]
[353941342,1740160259960,-500.0,0.00014027,2]
[353941343,1740160259972,-2900.01,0.00014027,2]
[353941344,1740160259981,-500.0,0.00014027,2]
[353941345,1740160259991,-500.0,0.00014027,2]
[353941346,1740160260000,-639.11,0.00014027,2]
[353941347,1740160260011,-500.0,0.00014027,2]
[353941348,1740160260020,-500.0,0.00014027,2]
[353941349,1740160260031,-1068.55,0.00014027,2]
[353941350,1740160260041,-500.0,0.00014027,2]
[353941351,1740160260051,-2035.31,0.00014027,2]
[353941352,1740160260061,-500.0,0.00014027,2]
[353941353,1740160260071,-1232.49,0.00014027,2]
[353941354,1740160260080,-500.0,0.00014027,2]
[353941355,1740160260090,-11401.33,0.00014027,2]
[353941356,1740160260100,-500.0,0.00014027,2]
[353941357,1740160260109,-500.0,0.00014027,2]
[353941358,1740160260119,-500.0,0.00014027,2]
[353941359,1740160260129,-500.0,0.00014027,2]
[353941360,1740160260138,-513.37,0.00014027,2]
[353941361,1740160260148,-168.48219964,0.00014027,2]
[353941362,1740160260158,-500.0,0.00014027,2]
[353941363,1740160260167,-1489.46,0.00014027,2]
[353941364,1740160260177,-596.42994496,0.00014027,2]
[353941365,1740160260187,-500.0,0.00014027,2]
[353941366,1740160260196,-720.01,0.00014027,2]
[353941367,1740160260207,-500.0,0.00014027,2]
[353941368,1740160260218,-160.38987825,0.00014108,2]
[353941369,1740160260230,-694.76,0.00014109,2]